fUST/lending_fUST_20240215
["ID","MTS","AMOUNT","RATE_DAILY","PERIOD"]
[314123151,1708007444574,-250.0,0.00035615,2]
[314123152,1708007444582,-216.08418479,0.00035615,15]
[314123153,1708007444591,-500.0,0.00035615,15]
[314123154,1708007444600,-500.0,0.00035615,15]
[314123155,1708007444609,-500.0,0.00035615,15]
[314123156,1708007444619,-500.0,0.00035615,15]
[314123157,1708007444628,-500.0,0.00035615,15]
[314123158,1708007444637,-500.0,0.00035615,15]
[314123159,1708007444646,-500.0,0.00035615,15]
[314123160,1708007444655,-500.0,0.00035615,15]
[314123161,1708007444665,-500.0,0.00035615,15]
[314123162,1708007444674,-557.54215304,0.00035615,15]
[314123163,1708007444683,-500.0,0.00035615,15]
[314123164,1708007444692,-500.0,0.00035615,15]
[314123165,1708007444701,-416.42981127,0.00035615,15]
[314123166,1708007444710,-500.0,0.00035615,15]
[314123167,1708007444719,-500.0,0.00035615,15]
[314123168,1708007444728,-500.0,0.00035615,15]
[314123169,1708007444737,-500.0,0.00035615,15]
[314123170,1708007444746,-500.0,0.00035615,15]
[314123171,1708007444755,-500.0,0.00035615,15]
[314123172,1708007444765,-500.0,0.00035615,15]
[314123173,1708007444775,-500.0,0.00035615,15]
[314123174,1708007444785,-500.0,0.00035615,15]
[314123175,1708007444795,-374.37677722,0.00035615,15]
[314123176,1708007444805,-500.0,0.00035615,15]
[314123177,1708007444816,-500.0,0.00035615,15]
[314123178,1708007444826,-500.0,0.00035615,15]
[314123179,1708007444836,-496.37744841,0.00035615,15]
[314123180,1708007444847,-559.90644258,0.00035615,15]
[314123181,1708007444862,-500.0,0.00035615,15]
[314123182,1708007444873,-500.0,0.00035615,15]
[314123183,1708007444883,-500.0,0.00035615,15]
[314123184,1708007444894,-500.0,0.00035615,15]
[314123185,1708007444903,-500.0,0.00035615,15]
[314123186,1708007444914,-286.9311872,0.00035615,15]
[314123187,1708007444924,-500.0,0.00035615,15]
[314123188,1708007444934,-311.02534713,0.00035615,15]
[314123189,1708007444944,-280.32383439,0.00035615,15]
[314123190,1708007444954,-500.0,0.00035615,15]
[314123191,1708007444964,-500.0,0.00035615,15]
[314123192,1708007444973,-500.0,0.00035615,15]
[314123193,1708007444982,-2010.81272481,0.00035616,21]
[314123194,1708007444991,-519.29306673,0.00035616,14]
[314123195,1708007445000,-253.39231964,0.00035616,14]
[314123196,1708007445010,-500.0,0.00035616,14]
[314123197,1708007445019,-500.0,0.00035616,14]
[314123198,1708007445029,-500.0,0.00035616,7]
[314123199,1708007445038,-500.0,0.00035616,14]
[314123200,1708007445047,-500.0,0.00035616,7]
[314123201,1708007445057,-500.0,0.00035616,2]
[314123202,1708007445066,-500.0,0.00035616,14]
[314123203,1708007445076,-500.0,0.00035616,14]
[314123204,1708007445085,-151.0,0.00035616,2]
[314123205,1708007445094,-500.0,0.00035616,14]
[314123206,1708007445103,-151.0,0.00035616,2]
[314123207,1708007445112,-151.0,0.00035616,2]
[314123208,1708007445121,-151.0,0.00035616,2]
[314123209,1708007445131,-151.0,0.00035616,2]
[314123210,1708007445140,-151.0,0.00035616,2]
[314123211,1708007445150,-500.0,0.00035616,14]
[314123212,1708007445159,-500.0,0.00035616,14]
[314123213,1708007445169,-500.0,0.00035616,14]
[314123214,1708007445179,-500.0,0.00035616,14]
[314123215,1708007445189,-500.0,0.00035616,14]
[314123216,1708007445199,-158.63636176,0.00035616,14]
[314123217,1708007445208,-500.0,0.00035616,14]
[314123218,1708007445218,-500.0,0.00035616,14]
[314123219,1708007445228,-500.0,0.00035616,14]
[314123220,1708007445238,-500.0,0.00035616,14]
[314123221,1708007445248,-500.0,0.00035616,14]
[314123222,1708007445257,-914.43,0.00035616,14]
[314123223,1708007445267,-500.0,0.00035616,14]
[314123224,1708007445277,-500.0,0.00035616,14]
[314123225,1708007445288,-500.0,0.00035616,14]
[314123226,1708007445298,-500.0,0.00035616,14]
[314123227,1708007445308,-500.0,0.00035616,14]
[314123228,1708007445318,-500.0,0.00035616,14]
[314123229,1708007445327,-500.0,0.00035616,14]
[314123230,1708007445337,-514.91981209,0.00035616,14]
[314123231,1708007445347,-656.22,0.00035616,14]
[314123233,1708007445357,-656.22,0.00035616,14]
[314123235,1708007445366,-656.22,0.00035616,14]
[314123237,1708007445376,-656.22,0.00035616,14]
[314123238,1708007445386,-656.22,0.00035616,14]
[314123239,1708007445395,-656.22,0.00035616,14]
[314123240,1708007445405,-656.22,0.00035616,14]
[314123241,1708007445418,-656.22,0.00035616,14]
[314123242,1708007445428,-656.22,0.00035616,14]
[314123243,1708007445439,-500.0,0.00035616,14]
[314123244,1708007445448,-500.0,0.00035616,14]
[314123245,1708007445457,-500.0,0.00035616,14]
[314123246,1708007445467,-506.95127322,0.00035616,14]
[314123247,1708007445477,-500.0,0.00035616,14]
[314123248,1708007445486,-582.57474798,0.00035616,14]
[314123249,1708007445497,-151.0,0.00035616,2]
[314123250,1708007445507,-151.0,0.00035616,2]
[314123251,1708007445517,-151.0,0.00035616,2]
[314123252,1708007445528,-258.457458,0.00035616,2]
[314123253,1708007445538,-500.0,0.00035616,14]
[314123254,1708007445548,-500.0,0.00035616,14]
[314123255,1708007445560,-500.0,0.00035616,14]
[314123256,1708007445573,-2539.94,0.00035616,14]
[314123257,1708007445581,-500.0,0.00035616,14]
[314123258,1708007445591,-500.0,0.00035616,14]
[314123259,1708007445600,-500.0,0.00035616,14]
[314123260,1708007445610,-500.0,0.00035616,14]
[314123261,1708007445620,-500.0,0.00035616,14]
[314123263,1708007445629,-500.0,0.00035616,14]
[314123265,1708007445638,-500.0,0.00035616,14]
[314123267,1708007445648,-347.51683518,0.00035616,14]
[314123269,1708007445657,-553.86325545,0.00035616,14]
[314123271,1708007445669,-1182.7,0.00035616,14]
[314123273,1708007445678,-504.03989668,0.00035616,14]
[314123274,1708007445687,-526.48042222,0.00035616,14]
[314123276,1708007445696,-500.0,0.00035616,14]
[314123278,1708007445705,-2079.61,0.00035616,14]
[314123280,1708007445714,-567.78,0.00035616,14]
[314123282,1708007445723,-500.0,0.00035616,14]
[314123284,1708007445733,-511.35561246,0.00035616,14]
[314123286,1708007445742,-507.30354438,0.00035616,14]
[314123288,1708007445751,-393.93306636,0.00035616,14]
[314123290,1708007445760,-575.10018,0.00035616,14]
[314123292,1708007445769,-500.0,0.00035616,14]
[314123294,1708007445778,-500.0,0.00035616,14]
[314123296,1708007445787,-500.0,0.00035616,14]
[314123298,1708007445796,-500.0,0.00035616,2]
[314123300,1708007445805,-506.44463582,0.00035616,14]
[314123302,1708007445815,-500.0,0.00035616,14]
[314123304,1708007445824,-500.0,0.00035616,14]
[314123306,1708007445833,-531.52,0.00035616,14]
[314123308,1708007445842,-505.07339131,0.00035616,14]
[314123310,1708007445852,-557.13823248,0.00035616,14]
[314123312,1708007445861,-500.0,0.00035616,14]
[314123314,1708007445872,-503.66058879,0.00035616,14]
[314123315,1708007445882,-507.50151569,0.00035616,14]
[314123317,1708007445891,-500.0,0.00035616,2]
[314123319,1708007445901,-500.0,0.00035616,14]
[314123321,1708007445909,-500.0,0.00035616,14]
[314123323,1708007445920,-511.75666933,0.00035616,14]
[314123325,1708007445928,-500.0,0.00035616,14]
[314123327,1708007445937,-507.21096205,0.00035616,14]
[314123328,1708007445946,-500.0,0.00035616,14]
[314123329,1708007445956,-1718.04,0.00035616,7]
[314123330,1708007445967,-500.0,0.00035616,14]
[314123332,1708007445976,-404.84073199,0.00035616,14]
[314123333,1708007445985,-437.52618809,0.00035616,14]
[314123334,1708007445994,-685.81,0.00035616,14]
[314123335,1708007446004,-339.19159002,0.00035616,14]
[314123336,1708007446013,-328.32247603,0.00035616,14]
[314123338,1708007446023,-506.84728892,0.00035616,14]
[314123340,1708007446031,-500.0,0.00035616,14]
[314123342,1708007446040,-500.0,0.00035616,14]
[314123344,1708007446050,-500.0,0.00035616,14]
[314123345,1708007446059,-500.0,0.00035616,14]
[314123347,1708007446068,-500.0,0.00035616,14]
[314123349,1708007446077,-503.65972275,0.00035616,14]
[314123351,1708007446086,-169.89299876,0.00035616,2]
[314123353,1708007446095,-500.0,0.00035616,14]
[314123355,1708007446104,-500.0,0.00035616,14]
[314123357,1708007446113,-500.0,0.00035616,14]
[314123359,1708007446122,-503.75041183,0.00035616,14]
[314123361,1708007446131,-507.63891039,0.00035616,14]
[314123363,1708007446140,-500.0,0.00035616,14]
[314123365,1708007446149,-504.85224954,0.00035616,2]
[314123367,1708007446162,-508.39706572,0.00035616,14]
[314123369,1708007446171,-260.37284919,0.00035616,14]
[314123371,1708007446181,-516.26871262,0.00035616,14]
[314123373,1708007446190,-504.12580923,0.00035616,14]
[314123375,1708007446199,-509.95666491,0.00035616,14]
[314123377,1708007446209,-500.0,0.00035616,14]
[314123379,1708007446218,-500.0,0.00035616,14]
[314123381,1708007446227,-516.39323085,0.00035616,14]
[314123383,1708007446236,-500.0,0.00035616,14]
[314123385,1708007446244,-500.0,0.00035616,14]
[314123387,1708007446253,-466.47555463,0.00035616,14]
[314123389,1708007446263,-500.0,0.00035616,14]
[314123391,1708007446272,-220.0,0.00035616,2]
[314123400,1708007446282,-500.0,0.00035616,14]
[314123402,1708007446359,-500.0,0.00035616,14]
[314123403,1708007446368,-1077.55,0.00035616,14]
[314123404,1708007446377,-500.0,0.00035616,14]
[314123405,1708007446387,-500.0,0.00035616,14]
[314123406,1708007446395,-151.0,0.00035616,2]
[314123407,1708007446405,-155.192664,0.00035616,2]
[314123408,1708007446416,-514.17615072,0.00035616,14]
[314123409,1708007446425,-503.17223067,0.00035616,14]
[314123410,1708007446434,-505.49748624,0.00035616,14]
[314123411,1708007446444,-292.49912931,0.00035616,14]
[314123412,1708007446453,-533.50988695,0.00035616,14]
[314123413,1708007446462,-501.76829055,0.00035616,14]
[314123415,1708007446472,-515.08897743,0.00035616,14]
[314123417,1708007446481,-500.0,0.00035616,14]
[314123419,1708007446490,-500.0,0.00035616,7]
[314123421,1708007446499,-377.83158779,0.00035616,14]
[314123423,1708007446508,-500.0,0.00035616,14]
[314123424,1708007446517,-516.51970827,0.00035616,14]
[314123425,1708007446527,-500.0,0.00035616,14]
[314123426,1708007446537,-500.0,0.00035616,14]
[314123428,1708007446549,-502.41251574,0.00035616,14]
[314123430,1708007446559,-500.0,0.00035616,14]
[314123431,1708007446570,-397.46061973,0.00035616,14]
[314123432,1708007446580,-502.83232486,0.00035616,14]
[314123433,1708007446591,-689.31,0.00035616,14]
[314123434,1708007446602,-502.59986416,0.00035616,14]
[314123435,1708007446612,-500.0,0.00035616,14]
[314123436,1708007446623,-500.0,0.00035616,14]
[314123437,1708007446633,-500.0,0.00035616,14]
[314123438,1708007446644,-506.1143827,0.00035616,14]
[314123439,1708007446654,-526.15947414,0.00035616,14]
[314123440,1708007446666,-502.57460696,0.00035616,7]
[314123441,1708007446676,-500.0,0.00035616,14]
[314123442,1708007446687,-500.0,0.00035616,14]
[314123443,1708007446698,-500.0,0.00035616,2]
[314123444,1708007446709,-596.22880641,0.00035616,14]
[314123445,1708007446720,-500.0,0.00035616,14]
[314123446,1708007446730,-500.0,0.00035616,14]
[314123447,1708007446740,-771.85,0.00035616,14]
[314123448,1708007446751,-632.37272132,0.00035616,14]
[314123449,1708007446761,-575.15,0.00035616,14]
[314123450,1708007446771,-340.40376875,0.00035616,14]
[314123451,1708007446781,-13892.43,0.00035616,14]
[314123452,1708007446794,-1722.49,0.00035616,14]
[314123453,1708007446803,-500.0,0.00035616,14]
[314123454,1708007446813,-500.0,0.00035616,14]
[314123455,1708007446822,-500.0,0.00035616,14]
[314123456,1708007446832,-500.0,0.00035616,14]
[314123457,1708007446841,-16326.51,0.00035616,14]
[314123459,1708007446853,-500.0,0.00035616,14]
[314123460,1708007446862,-500.0,0.00035616,14]
[314123461,1708007446871,-561.49,0.00035616,14]
[314123463,1708007446883,-500.0,0.00035616,14]
[314123464,1708007446895,-500.0,0.00035616,14]
[314123465,1708007446907,-500.0,0.00035616,14]
[314123466,1708007446918,-536.17297969,0.00035616,14]
[314123467,1708007446928,-650.34,0.00035616,14]
[314123468,1708007446936,-500.0,0.00035616,14]
[314123469,1708007446946,-500.0,0.00035616,14]
[314123470,1708007446955,-500.0,0.00035616,14]
[314123471,1708007446965,-500.0,0.00035616,2]
[314123472,1708007446974,-151.0,0.00035616,2]
[314123473,1708007446983,-151.0,0.00035616,2]
[314123474,1708007446991,-151.0,0.00035616,2]
[314123475,1708007447001,-151.0,0.00035616,2]
[314123476,1708007447010,-151.0,0.00035616,2]
[314123477,1708007447019,-281.213023,0.00035616,2]
[314123478,1708007447029,-500.0,0.00035616,14]
[314123479,1708007447040,-14545.94,0.00035616,14]
[314123480,1708007447050,-1252.73,0.00035616,14]
[314123481,1708007447059,-500.0,0.00035616,14]
[314123482,1708007447069,-500.0,0.00035616,14]
[314123483,1708007447078,-151.0,0.00035616,2]
[314123484,1708007447088,-151.0,0.00035616,2]
[314123485,1708007447100,-236.331289,0.00035616,2]
[314123486,1708007447110,-764.35,0.00035616,14]
[314123487,1708007447119,-500.0,0.00035616,14]
[314123488,1708007447129,-7363.77,0.00035616,14]
[314123489,1708007447138,-5012.08,0.00035616,14]
[314123490,1708007447147,-500.0,0.00035616,14]
[314123491,1708007447157,-500.0,0.00035616,14]
[314123492,1708007447169,-1464.93,0.00035616,14]
[314123493,1708007447178,-9472.34,0.00035616,14]
[314123494,1708007447187,-2007.27,0.00035616,14]
[314123495,1708007447197,-151.0,0.00035616,2]
[314123496,1708007447206,-151.0,0.00035616,2]
[314123497,1708007447215,-151.0,0.00035616,2]
[314123498,1708007447224,-151.0,0.00035616,2]
[314123499,1708007447234,-151.0,0.00035616,2]
[314123500,1708007447243,-151.0,0.00035616,2]
[314123501,1708007447252,-216.63846744,0.00035616,2]
[314123502,1708007447262,-2251.19,0.00035616,14]
[314123503,1708007447271,-2136.93,0.00035616,14]
[314123504,1708007447280,-2764.98,0.00035616,14]
[314123505,1708007447290,-235.92277961,0.00035616,14]
[314123506,1708007447299,-1173.67,0.00035616,14]
[314123507,1708007447308,-14222.3,0.00035616,14]
[314123508,1708007447318,-500.0,0.00035616,14]
[314123509,1708007447327,-151.0,0.00035616,2]
[314123510,1708007447337,-151.0,0.00035616,2]
[314123511,1708007447348,-151.0,0.00035616,2]
[314123512,1708007447357,-151.0,0.00035616,2]
[314123513,1708007447366,-151.0,0.00035616,2]
[314123514,1708007447375,-151.0,0.00035616,2]
[314123515,1708007447384,-151.0,0.00035616,2]
[314123516,1708007447393,-151.0,0.00035616,2]
[314123517,1708007447402,-151.0,0.00035616,2]
[314123518,1708007447412,-151.0,0.00035616,2]
[314123519,1708007447422,-294.203182,0.00035616,2]
[314123520,1708007447431,-500.92600228,0.00035616,14]
[314123521,1708007447440,-500.0,0.00035616,14]
[314123522,1708007447449,-1270.5,0.00035616,14]
[314123523,1708007447459,-1189.1,0.00035616,14]
[314123524,1708007447470,-879.81,0.00035616,14]
[314123525,1708007447481,-815.49,0.00035616,14]
[314123526,1708007447491,-500.0,0.00035616,14]
[314123527,1708007447501,-500.0,0.00035616,14]
[314123528,1708007447512,-1934.47,0.00035616,14]
[314123529,1708007447521,-500.0,0.00035616,14]
[314123530,1708007447531,-375.44487099,0.00035616,14]
[314123531,1708007447543,-500.0,0.00035616,14]
[314123532,1708007447553,-500.0,0.00035616,14]
[314123533,1708007447564,-500.0,0.00035616,14]
[314123534,1708007447572,-1891.64,0.00035616,14]
[314123535,1708007447581,-500.0,0.00035616,14]
[314123536,1708007447591,-500.0,0.00035616,14]
[314123537,1708007447600,-500.0,0.00035616,14]
[314123538,1708007447610,-506.91722832,0.00035616,14]
[314123539,1708007447619,-500.0,0.00035616,14]
[314123540,1708007447628,-500.0,0.00035616,14]
[314123541,1708007447638,-500.0,0.00035616,14]
[314123542,1708007447647,-14257.33,0.00035616,14]
[314123543,1708007447656,-1999.91,0.00035616,2]
[314123544,1708007447667,-500.0,0.00035616,14]
[314123545,1708007447675,-500.0,0.00035616,14]
[314123546,1708007447684,-2000.0,0.0003562,24]
[314123547,1708007447693,-2000.0,0.0003562,24]
[314123548,1708007447703,-550.6544217,0.0003562,2]
[314123549,1708007447712,-2000.0,0.0003563,24]
[314123550,1708007447721,-2000.0,0.0003563,24]
[314123551,1708007447730,-656.22,0.00035639,14]
[314123552,1708007447738,-2000.0,0.0003564,24]
[314123553,1708007447747,-2000.0,0.0003564,24]
[314123554,1708007447757,-2000.0,0.0003565,24]
[314123555,1708007447766,-2000.0,0.0003565,24]
[314123556,1708007447775,-6942.0,0.00035653,3]
[314123557,1708007447784,-2060.81403143,0.00035653,2]
[314123558,1708007447793,-2269.527347,0.0003566,24]
[314123559,1708007447802,-2000.0,0.0003566,24]
[314123560,1708007447811,-2000.0,0.0003567,24]
[314123561,1708007447821,-2000.0,0.0003568,24]
[314123562,1708007447830,-2000.0,0.0003569,24]
[314123563,1708007447838,-2000.0,0.000357,24]
[314123564,1708007447847,-953.123281,0.00035703,2]
[314123565,1708007447862,-477.432369,0.00035703,2]
[314123566,1708007447871,-179.145465,0.00035703,2]
[314123567,1708007447880,-181.780109,0.00035703,2]
[314123568,1708007447889,-2000.0,0.0003571,24]
[314123569,1708007447899,-3368.746497,0.0003572,24]
[314123570,1708007447908,-656.22,0.00035752,14]
[314123571,1708007447918,-656.22,0.00035752,14]
[314123572,1708007447927,-656.22,0.00035752,14]
[314123573,1708007447936,-656.22,0.00035752,14]
[314123574,1708007447945,-656.22,0.00035752,14]
[314123575,1708007447954,-500.0,0.00035753,7]
[314123576,1708007447964,-500.0,0.00035753,14]
[314123577,1708007447973,-500.0,0.00035753,7]
[314123578,1708007447982,-500.0,0.00035753,2]
[314123579,1708007447991,-500.0,0.00035753,14]
[314123580,1708007448000,-498.94893045,0.00035753,14]
[314123581,1708007448009,-341.64136384,0.00035753,14]
[314123582,1708007448019,-500.0,0.00035753,14]
[314123583,1708007448027,-500.0,0.00035753,14]
[314123584,1708007448035,-500.0,0.00035753,14]
[314123585,1708007448044,-500.0,0.00035753,14]
[314123586,1708007448118,-500.0,0.00035753,14]
[314123587,1708007448128,-500.0,0.00035753,14]
[314123588,1708007448173,-500.0,0.00035753,14]
[314123589,1708007448182,-500.0,0.00035753,14]
[314123590,1708007448191,-500.0,0.00035753,14]
[314123591,1708007448200,-914.43,0.00035753,14]
[314123592,1708007448210,-239.15285987,0.00035753,14]
[314123593,1708007448220,-422.59488046,0.00035753,14]
[314123594,1708007448230,-491.43111383,0.00035753,14]
[314123595,1708007448241,-500.0,0.00035753,14]
[314123596,1708007448251,-500.0,0.00035753,14]
[314123597,1708007448261,-500.0,0.00035753,14]
[314123598,1708007448273,-500.0,0.00035753,14]
[314123599,1708007448282,-500.0,0.00035753,14]
[314123600,1708007448292,-521.3877079,0.00035753,14]
[314123601,1708007448302,-513.49465478,0.00035753,14]
[314123602,1708007448311,-506.99908873,0.00035753,14]
[314123603,1708007448323,-500.0,0.00035753,14]
[314123604,1708007448332,-275.60805396,0.00035753,14]
[314123605,1708007448341,-500.0,0.00035753,14]
[314123606,1708007448352,-2539.94,0.00035753,14]
[314123607,1708007448362,-511.83921594,0.00035753,14]
[314123608,1708007448371,-500.0,0.00035753,14]
[314123609,1708007448381,-1182.7,0.00035753,14]
[314123610,1708007448391,-500.0,0.00035753,14]
[314123611,1708007448401,-2079.61,0.00035753,14]
[314123612,1708007448411,-567.78,0.00035753,14]
[314123613,1708007448421,-500.0,0.00035753,14]
[314123614,1708007448431,-500.0,0.00035753,14]
[314123615,1708007448440,-205.94730275,0.00035753,14]
[314123616,1708007448450,-526.87132719,0.00035753,14]
[314123617,1708007448459,-500.0,0.00035753,2]
[314123618,1708007448469,-500.0,0.00035753,14]
[314123619,1708007448478,-500.0,0.00035753,14]
[314123620,1708007448487,-531.52,0.00035753,14]
[314123621,1708007448496,-500.0,0.00035753,14]
[314123622,1708007448505,-500.0,0.00035753,2]
[314123623,1708007448515,-500.0,0.00035753,14]
[314123624,1708007448524,-500.0,0.00035753,14]
[314123625,1708007448533,-500.0,0.00035753,14]
[314123626,1708007448542,-500.0,0.00035753,14]
[314123627,1708007448551,-1718.04,0.00035753,7]
[314123628,1708007448560,-500.0,0.00035753,14]
[314123629,1708007448569,-685.81,0.00035753,14]
[314123630,1708007448578,-500.0,0.00035753,14]
[314123631,1708007448587,-500.0,0.00035753,14]
[314123632,1708007448596,-500.0,0.00035753,14]
[314123633,1708007448605,-500.0,0.00035753,14]
[314123634,1708007448614,-500.0,0.00035753,14]
[314123635,1708007448623,-500.0,0.00035753,14]
[314123636,1708007448633,-500.0,0.00035753,14]
[314123637,1708007448642,-500.0,0.00035753,14]
[314123638,1708007448651,-183.67337361,0.00035753,2]
[314123639,1708007448660,-500.0,0.00035753,14]
[314123640,1708007448671,-533.02323308,0.00035753,14]
[314123641,1708007448680,-1077.55,0.00035753,14]
[314123642,1708007448689,-500.0,0.00035753,14]
[314123643,1708007448698,-500.0,0.00035753,14]
[314123644,1708007448707,-500.0,0.00035753,14]
[314123645,1708007448716,-500.0,0.00035753,7]
[314123646,1708007448725,-500.0,0.00035753,14]
[314123647,1708007448734,-500.0,0.00035753,14]
[314123648,1708007448743,-500.0,0.00035753,14]
[314123649,1708007448753,-500.0,0.00035753,14]
[314123650,1708007448762,-689.31,0.00035753,14]
[314123651,1708007448771,-500.0,0.00035753,14]
[314123652,1708007448780,-577.04757293,0.00035753,14]
[314123653,1708007448790,-500.0,0.00035753,14]
[314123654,1708007448801,-500.0,0.00035753,14]
[314123655,1708007448810,-500.0,0.00035753,14]
[314123656,1708007448819,-505.92032501,0.00035753,2]
[314123657,1708007448830,-500.0,0.00035753,14]
[314123658,1708007448840,-500.0,0.00035753,14]
[314123659,1708007448850,-771.85,0.00035753,14]
[314123660,1708007448867,-575.15,0.00035753,14]
[314123661,1708007448877,-13892.43,0.00035753,14]
[314123662,1708007448889,-1722.49,0.00035753,14]
[314123663,1708007448899,-246.76428622,0.00035753,14]
[314123664,1708007448909,-500.0,0.00035753,14]
[314123665,1708007448919,-500.0,0.00035753,14]
[314123666,1708007448929,-500.0,0.00035753,14]
[314123667,1708007448938,-16326.51,0.00035753,14]
[314123668,1708007448947,-500.0,0.00035753,14]
[314123669,1708007448957,-500.0,0.00035753,14]
[314123670,1708007448966,-561.49,0.00035753,14]
[314123671,1708007448975,-500.0,0.00035753,14]
[314123672,1708007448983,-650.34,0.00035753,14]
[314123673,1708007448992,-366.33668883,0.00035753,14]
[314123674,1708007449002,-500.0,0.00035753,14]
[314123675,1708007449011,-500.0,0.00035753,14]
[314123676,1708007449020,-500.0,0.00035753,2]
[314123677,1708007449030,-500.0,0.00035753,14]
[314123678,1708007449039,-14545.94,0.00035753,14]
[314123679,1708007449048,-1252.73,0.00035753,14]
[314123680,1708007449057,-500.0,0.00035753,14]
[314123681,1708007449067,-500.0,0.00035753,14]
[314123682,1708007449076,-764.35,0.00035753,14]
[314123683,1708007449085,-500.0,0.00035753,14]
[314123684,1708007449095,-7363.77,0.00035753,14]
[314123685,1708007449104,-5012.08,0.00035753,14]
[314123686,1708007449114,-500.0,0.00035753,14]
[314123687,1708007449123,-1464.93,0.00035753,14]
[314123688,1708007449132,-9472.34,0.00035753,14]
[314123689,1708007449141,-2007.27,0.00035753,14]
[314123690,1708007449152,-2251.19,0.00035753,14]
[314123691,1708007449161,-2136.93,0.00035753,14]
[314123692,1708007449172,-2764.98,0.00035753,14]
[314123693,1708007449182,-1173.67,0.00035753,14]
[314123694,1708007449192,-14222.3,0.00035753,14]
[314123695,1708007449201,-500.0,0.00035753,14]
[314123696,1708007449210,-500.0,0.00035753,14]
[314123697,1708007449220,-1270.5,0.00035753,14]
[314123698,1708007449229,-1189.1,0.00035753,14]
[314123699,1708007449238,-879.81,0.00035753,14]
[314123700,1708007449247,-815.49,0.00035753,14]
[314123701,1708007449256,-500.0,0.00035753,14]
[314123702,1708007449265,-500.0,0.00035753,14]
[314123703,1708007449274,-1934.47,0.00035753,14]
[314123704,1708007449283,-500.0,0.00035753,14]
[314123705,1708007449292,-500.0,0.00035753,14]
[314123706,1708007449301,-500.0,0.00035753,14]
[314123707,1708007449311,-500.0,0.00035753,14]
[314123708,1708007449320,-1891.64,0.00035753,14]
[314123709,1708007449332,-504.63378234,0.00035753,14]
[314123710,1708007449342,-332.02644429,0.00035753,14]
[314123711,1708007449351,-500.0,0.00035753,14]
[314123712,1708007449360,-500.0,0.00035753,14]
[314123713,1708007449369,-500.0,0.00035753,14]
[314123714,1708007449379,-500.0,0.00035753,14]
[314123715,1708007449388,-14257.33,0.00035753,14]
[314123716,1708007449397,-1999.91,0.00035753,2]
[314123717,1708007449406,-517.90054454,0.00035753,14]
[314123718,1708007449418,-200.0,0.000358,2]
[314123719,1708007449427,-300.0,0.00035828,3]
[314123720,1708007449436,-656.22,0.00035889,14]
[314123721,1708007449446,-656.22,0.00035889,14]
[314123722,1708007449454,-656.22,0.00035889,14]
[314123723,1708007449463,-656.22,0.00035889,14]
[314123724,1708007449472,-656.22,0.00035889,14]
[314123725,1708007449481,-656.22,0.00035889,14]
[314123726,1708007449490,-656.22,0.00035889,14]
[314123727,1708007449500,-656.22,0.00035889,14]
[314123728,1708007449509,-656.32024553,0.00035889,14]
[314123729,1708007449519,-500.0,0.0003589,7]
[314123730,1708007449529,-500.0,0.0003589,14]
[314123731,1708007449538,-500.0,0.0003589,2]